bitfinex-derivatives/quotes_BTCF0:USTF0_20250508
["timestamp","ask_amount","ask_price","bid_price","bid_amount"]
[1746739123467,0.69500431,103320.0,103310.0,0.40206964]
[1746739123468,0.33420431,103320.0,103310.0,0.40206964]
[1746739124071,0.168,103320.0,103310.0,1.32012897]
[1746739124375,0.16620431,103320.0,103310.0,0.3608]
[1746739124566,0.1936011,103300.0,103290.0,0.04126964]
[1746739124768,0.3608,103320.0,103290.0,0.60703967]
[1746739124968,0.16620431,103300.0,103290.0,0.41341977]
[1746739125169,0.33420431,103300.0,103290.0,0.41341977]
[1746739125378,0.33420431,103300.0,103290.0,0.60703967]
[1746739125670,0.168,103300.0,103290.0,0.70385167]
[1746739126071,0.0823,103320.0,103310.0,0.23485204]
[1746739126273,0.0823,103320.0,103310.0,0.96780217]
[1746739126475,0.0823,103320.0,103310.0,1.4188791]
[1746739126670,0.0823,103320.0,103310.0,1.0580791]
[1746739126876,1e-07,103330.0,103320.0,0.1935636]
[1746739127174,1e-07,103330.0,103320.0,0.45955013]
[1746739127374,0.44204931,103330.0,103320.0,0.37215013]
[1746739127575,0.80284931,103330.0,103320.0,0.01134794]
[1746739127871,0.242012,103300.0,103290.0,0.3608]
[1746739128176,0.57621431,103300.0,103290.0,0.3608]
[1746739128380,0.33420431,103300.0,103290.0,0.3608]
[1746739128671,0.93701581,103300.0,103280.0,0.36370473]
[1746739128877,0.16620431,103290.0,103280.0,0.36370473]
[1746739129078,0.4576165,103290.0,103270.0,0.14518059]
[1746739129273,1.08431984,103280.0,103270.0,0.14518059]
[1746739129469,0.1936574,103270.0,103260.0,0.19418697]
[1746739129669,0.16620431,103280.0,103260.0,0.9670816]
[1746739129870,0.168,103290.0,103280.0,0.23490824]
[1746739130175,0.0484006,103300.0,103280.0,1.16447693]
[1746739130365,0.76903781,103290.0,103270.0,0.3608]
[1746739130571,0.16620431,103280.0,103270.0,0.3608]
[1746739130767,0.52700431,103290.0,103270.0,0.64413884]
[1746739130972,0.5544199,103290.0,103280.0,0.36367693]
[1746739131267,0.168,103290.0,103280.0,0.20072192]
[1746739131487,0.168,103290.0,103280.0,0.2760386]
[1746739131777,0.168,103290.0,103280.0,0.40540824]
[1746739132181,0.0003,103310.0,103280.0,1.03306656]
[1746739132384,0.16650431,103310.0,103300.0,0.3608]
[1746739132683,0.4447,103310.0,103290.0,0.77288133]
[1746739132979,0.35980541,103300.0,103290.0,0.4432]
[1746739133170,0.33420431,103300.0,103290.0,0.4432]
[1746739133367,0.41780431,103300.0,103290.0,0.4432]
[1746739133772,0.77860431,103300.0,103290.0,0.0824]
[1746739133972,0.41780431,103300.0,103290.0,0.44607693]
[1746739134172,0.77860431,103300.0,103290.0,0.63969683]
[1746739134368,0.77860431,103300.0,103290.0,0.44607693]
[1746739134570,0.1936199,103290.0,103280.0,0.00742829]
[1746739134771,0.52472421,103290.0,103270.0,0.3608]
[1746739134978,0.16620431,103280.0,103270.0,0.45811874]
[1746739135284,0.69500431,103280.0,103270.0,0.09731874]
[1746739135474,0.33420431,103280.0,103270.0,0.45811874]
[1746739135675,0.69500431,103280.0,103270.0,0.09731874]
[1746739135871,0.96924291,103280.0,103270.0,0.09731874]
[1746739136072,0.96924291,103280.0,103270.0,0.02168769]
[1746739136273,1.05054291,103280.0,103270.0,0.02168769]
[1746739136487,1.05054291,103280.0,103270.0,0.01441874]
[1746739136683,1.05054291,103280.0,103260.0,0.00096842]
[1746739136684,0.1936574,103270.0,103260.0,0.19418697]
[1746739136979,0.5227,103270.0,103260.0,0.36367693]
[1746739137174,0.83595541,103270.0,103250.0,0.25012964]
[1746739137371,0.5544761,103260.0,103250.0,0.24286432]
[1746739137580,0.6258761,103260.0,103250.0,0.24286432]
[1746739138179,0.8907241,103260.0,103250.0,0.24286432]
[1746739138582,0.6002,103260.0,103250.0,0.24286432]
[1746739138881,0.5188,103260.0,103250.0,0.80023615]
[1746739139078,0.3508,103260.0,103250.0,0.69154125]
[1746739139279,0.3508,103260.0,103250.0,0.44867693]
[1746739139786,0.3608,103260.0,103250.0,0.5084563]
[1746739139982,0.3608,103260.0,103250.0,0.83085922]
[1746739140189,0.168,103260.0,103250.0,0.83085922]
[1746739140388,0.7224761,103260.0,103250.0,0.09635629]
[1746739140575,0.8946761,103260.0,103250.0,0.01135629]
[1746739141286,0.701,103260.0,103250.0,0.20505119]
[1746739141580,0.6147,103260.0,103250.0,0.01135629]
[1746739141781,0.1937136,103240.0,103230.0,0.0009687]
[1746739141984,0.9153136,103240.0,103230.0,0.0009687]
[1746739142177,1.3481816,103240.0,103230.0,0.0009687]
[1746739142487,1.3481816,103240.0,103230.0,1e-07]
[1746739142680,0.1937512,103220.0,103210.0,0.0029067]
[1746739142883,0.9153512,103220.0,103210.0,0.0029067]
[1746739143087,1.0013512,103220.0,103210.0,0.00302951]
[1746739143384,1.2662352,103220.0,103210.0,0.00302951]
[1746739143585,1.1693512,103220.0,103210.0,0.00302951]
[1746739143784,0.9756,103220.0,103210.0,0.00302951]
[1746739143980,0.254,103220.0,103210.0,0.52006099]
[1746739144180,0.3608,103220.0,103210.0,0.31816905]
[1746739144387,0.3608,103220.0,103210.0,0.20569915]
[1746739144576,0.5545512,103220.0,103210.0,0.16442951]
[1746739144779,0.5545512,103220.0,103210.0,0.08312951]
[1746739144978,0.4469,103220.0,103210.0,0.08312951]
[1746739145183,0.8939512,103220.0,103210.0,0.00302951]
[1746739145985,0.168,103220.0,103210.0,0.23806905]
[1746739146286,0.3608,103220.0,103210.0,0.48837464]
[1746739146483,0.4469,103230.0,103210.0,0.56967464]
[1746739146687,0.3608,103220.0,103210.0,0.76344344]
[1746739146891,0.4469,103230.0,103210.0,0.76344344]
[1746739147186,0.770067,103230.0,103210.0,0.56967464]
[1746739147391,0.5279,103230.0,103210.0,0.56967464]
[1746739147574,0.3608,103230.0,103210.0,0.56967464]
[1746739147777,0.168,103240.0,103230.0,0.04126964]
[1746739147981,0.5288,103240.0,103230.0,0.04126964]
[1746739148186,0.5545136,103240.0,103230.0,0.56864513]
[1746739148383,0.3608,103240.0,103230.0,0.04126964]
[1746739148587,0.9852637,103240.0,103210.0,0.57167464]
[1746739148788,0.3608,103230.0,103220.0,0.0801]
[1746739149084,0.1668,103240.0,103220.0,0.31512084]
[1746739149287,0.5276,103240.0,103230.0,0.36397549]
[1746739149587,0.5276,103240.0,103230.0,0.44407549]
[1746739149779,0.55522064,103250.0,103230.0,0.44407549]
[1746739149780,0.36152564,103250.0,103230.0,0.44407549]
[1746739149982,0.5545136,103240.0,103230.0,0.0801]
[1746739150188,0.1937324,103230.0,103220.0,0.0884]
[1746739150380,0.6878662,103230.0,103210.0,0.453305]
[1746739150576,0.3608,103220.0,103210.0,0.6470749]
[1746739150791,0.36152564,103250.0,103230.0,0.096861]
[1746739150989,0.36152564,103250.0,103240.0,0.0863]
[1746739151191,0.16872564,103250.0,103240.0,0.6408136]
[1746739151490,0.0013,103270.0,103260.0,0.1936761]
[1746739151684,0.0013,103270.0,103260.0,0.53867549]
[1746739151892,0.3621,103270.0,103260.0,0.53867549]
[1746739152086,0.3621,103270.0,103260.0,0.73235159]
[1746739152887,0.3621,103270.0,103260.0,0.53867549]
[1746739153078,0.0013,103270.0,103260.0,1.09315159]
[1746739153277,0.168,103280.0,103270.0,0.1936574]
[1746739153486,0.168,103280.0,103270.0,0.73103289]
[1746739153686,0.168,103280.0,103270.0,1.09183289]
[1746739153882,0.168,103280.0,103270.0,0.73921056]
[1746739154081,0.7224386,103280.0,103270.0,0.18475316]
[1746739154477,0.5288,103280.0,103270.0,0.18475316]
[1746739154680,0.168,103280.0,103270.0,0.73921056]
[1746739154889,0.5288,103280.0,103270.0,0.37841056]
[1746739155085,0.5288,103280.0,103270.0,0.37841214]
[1746739155282,0.3608,103280.0,103270.0,0.88048247]
[1746739155477,0.3618,103300.0,103290.0,0.04126964]
[1746739155678,0.7226,103300.0,103290.0,0.04126964]
[1746739155878,0.001,103300.0,103290.0,0.61031379]
[1746739156083,0.0003,103310.0,103300.0,0.04126964]
[1746739156285,0.3611,103310.0,103300.0,0.18505396]
[1746739156479,0.3611,103310.0,103300.0,0.0526236]
[1746739156676,0.1936011,103300.0,103290.0,9.48e-05]
[1746739156878,0.3608,103300.0,103290.0,0.04136444]
[1746739157080,0.7224011,103300.0,103290.0,0.12666444]
[1746739157280,0.5288,103300.0,103290.0,0.33163818]
[1746739157485,0.5288,103300.0,103290.0,0.22641828]
[1746739157687,0.168,103300.0,103290.0,0.78401367]
[1746739157890,0.5288,103300.0,103290.0,0.78401367]
[1746739158288,0.3608,103300.0,103290.0,0.42003818]
[1746739158484,0.3608,103300.0,103290.0,0.78401367]
[1746739158687,0.3608,103300.0,103290.0,0.78401182]
[1746739158987,0.0003,103310.0,103290.0,0.22641643]
[1746739159190,0.9152011,103300.0,103290.0,0.21506444]
[1746739159794,1.0896011,103300.0,103290.0,9.48e-05]
[1746739159989,1.0896011,103300.0,103290.0,0.04136444]
[1746739160288,0.1936386,103280.0,103270.0,0.12956964]
[1746739160487,0.1936574,103270.0,103260.0,0.09636828]
[1746739160789,0.5544574,103270.0,103260.0,0.00096842]
[1746739160992,1.07569741,103270.0,103260.0,0.00096842]
[1746739161196,0.99381944,103270.0,103260.0,0.00096842]
[1746739161389,0.99381944,103270.0,103240.0,0.00290571]
[1746739161390,0.1936949,103250.0,103240.0,0.00290571]
[1746739161691,0.9152949,103250.0,103240.0,0.00290571]
[1746739161879,1.18873795,103250.0,103240.0,0.00290571]
[1746739162388,0.1937136,103240.0,103230.0,0.0009687]
[1746739162590,0.5545512,103220.0,103210.0,0.00299216]
[1746739162785,0.5545699,103210.0,103200.0,0.38655617]
[1746739162980,0.91854539,103210.0,103200.0,0.38655617]
[1746739163195,1.1834414,103210.0,103200.0,0.38655617]
[1746739163486,0.7225699,103210.0,103200.0,0.38655617]
[1746739164190,0.1938075,103190.0,103180.0,0.27286866]
[1746739164489,0.1938638,103160.0,103150.0,0.68154998]
[1746739164682,0.55476834,103160.0,103150.0,0.68154998]
[1746739164889,0.65170834,103160.0,103150.0,0.51374998]
[1746739165189,0.81970834,103160.0,103150.0,0.51374998]
[1746739165394,1.43050834,103160.0,103150.0,0.12687548]
[1746739165585,1.18050834,103160.0,103150.0,1e-08]
[1746739165891,0.193939,103120.0,103110.0,0.00096983]
[1746739166091,1.4073288,103120.0,103110.0,0.00096983]
[1746739166299,1.7543088,103120.0,103110.0,3e-08]
[1746739166697,1.5043088,103120.0,103110.0,3e-08]
[1746739166900,1.5043902,103120.0,103110.0,3e-08]
[1746739167595,1.5046902,103120.0,103110.0,3e-08]
[1746739167791,1.5458152,103120.0,103110.0,3e-08]
[1746739168297,1.1809004,103120.0,103110.0,3e-08]
[1746739169095,1.0129004,103120.0,103110.0,3e-08]
[1746739170386,0.9156204,103120.0,103110.0,0.34152585]
[1746739170587,1.0126004,103120.0,103110.0,3e-08]
[1746739170786,1.3778152,103120.0,103110.0,3e-08]
[1746739171192,1.1809004,103120.0,103110.0,3e-08]
[1746739172087,1.0129004,103120.0,103110.0,3e-08]
[1746739172600,0.9158204,103120.0,103110.0,0.12845621]
[1746739172801,0.9158204,103120.0,103110.0,0.29825621]
[1746739173002,0.5548204,103120.0,103110.0,0.29825621]
[1746739173393,0.5548204,103120.0,103110.0,0.33952585]
[1746739173592,0.9156204,103120.0,103110.0,0.3546908]
[1746739173789,0.5548204,103120.0,103110.0,0.31342116]
[1746739174705,8.14e-05,103120.0,103110.0,0.55591344]
[1746739174898,0.0025014,103120.0,103110.0,0.36195554]
[1746739175198,0.5572404,103120.0,103110.0,0.52995554]
[1746739175393,0.6542204,103120.0,103110.0,0.36022972]
[1746739175599,0.5575404,103120.0,103110.0,0.36022972]
[1746739175902,0.5575404,103120.0,103110.0,0.35296498]
[1746739176097,0.5575404,103120.0,103110.0,0.18496498]
[1746739176303,0.5572404,103120.0,103110.0,0.31342116]
[1746739176998,0.5572404,103120.0,103110.0,0.18496498]
[1746739177196,0.5572404,103120.0,103110.0,0.19262688]
[1746739177389,0.5572404,103120.0,103110.0,0.32108306]
[1746739177596,0.3633014,103120.0,103110.0,0.32108306]
[1746739177790,0.0025014,103120.0,103110.0,0.51504096]
[1746739177990,0.0025014,103120.0,103110.0,0.32107972]
[1746739178196,0.0025014,103120.0,103110.0,0.68303762]
[1746739178499,0.3608,103130.0,103120.0,0.193939]
[1746739178804,0.3608,103150.0,103140.0,0.1939014]
[1746739179096,0.9154826,103150.0,103140.0,1e-08]
[1746739179500,0.65171716,103150.0,103140.0,1e-08]
[1746739179701,0.65211716,103150.0,103140.0,1e-08]
[1746739180001,0.0484853,103120.0,103100.0,9e-08]
[1746739180297,1.28057198,103110.0,103100.0,9e-08]
[1746739180500,0.72169928,103110.0,103100.0,9e-08]
[1746739180702,0.91565718,103110.0,103100.0,0.12595487]
[1746739181006,0.91565718,103110.0,103100.0,0.21505487]
[1746739181305,1.12365718,103110.0,103100.0,0.21505487]
[1746739181606,1.22064518,103110.0,103100.0,9e-08]
[1746739181798,1.22084518,103110.0,103100.0,9e-08]
[1746739182103,1.12385718,103110.0,103100.0,9e-08]
[1746739183201,0.95585718,103110.0,103100.0,9e-08]
[1746739183706,1.05284518,103110.0,103100.0,9e-08]
[1746739184206,1.58575998,103110.0,103100.0,9e-08]
[1746739185409,1.22084518,103110.0,103100.0,9e-08]
[1746739186207,0.95565718,103110.0,103100.0,9e-08]
[1746739187310,0.95565718,103110.0,103100.0,0.12595487]
[1746739188908,0.91565718,103110.0,103100.0,0.12595487]
[1746739189299,0.91565718,103110.0,103100.0,9e-08]
[1746739189604,0.91565718,103110.0,103100.0,0.12595487]
[1746739189806,0.72169928,103110.0,103100.0,0.12595487]
[1746739190007,0.55485718,103110.0,103100.0,0.12595487]
[1746739190211,0.91565718,103110.0,103100.0,0.29145487]
[1746739190507,1.239642,103110.0,103100.0,0.29145487]
[1746739191013,1.239642,103110.0,103100.0,0.16550009]
[1746739191312,1.239642,103110.0,103100.0,0.18066825]
[1746739192000,0.91565718,103110.0,103100.0,0.30662303]
[1746739192196,0.91565718,103110.0,103100.0,0.01516825]
[1746739192197,1.239642,103110.0,103100.0,0.01516825]
[1746739192403,1.33663,103110.0,103100.0,0.01516825]
[1746739192604,1.37773,103110.0,103100.0,0.01516825]
[1746739192907,1.37773,103110.0,103100.0,9e-08]
[1746739193102,1.54573,103110.0,103100.0,9e-08]
[1746739196206,0.1939955,103090.0,103080.0,0.09087011]
[1746739196413,0.91571621,103090.0,103080.0,0.09087011]
[1746739196714,1.37870904,103090.0,103080.0,0.09087011]
[1746739196915,1.37870904,103090.0,103080.0,0.17627011]
[1746739197211,1.28170103,103090.0,103080.0,0.30222489]
[1746739197406,0.95771621,103090.0,103080.0,0.30222489]
[1746739197615,1.28060103,103090.0,103080.0,0.31739664]
[1746739197811,1.23970103,103090.0,103080.0,0.31739664]
[1746739198510,0.91571621,103090.0,103080.0,0.32877548]
[1746739199014,0.91571621,103090.0,103080.0,0.32877489]
[1746739199612,1.23970103,103090.0,103080.0,0.31739664]
[1746739199809,1.33670904,103090.0,103080.0,0.10057175]
[1746739200014,0.1940143,103080.0,103070.0,0.00291064]
[1746739200206,0.91969912,103080.0,103070.0,0.00291064]
[1746739200405,0.194052,103060.0,103050.0,0.00105896]
[1746739200611,0.87894429,103060.0,103050.0,0.01243954]
[1746739200811,0.91575947,103060.0,103050.0,0.13839432]
[1746739201006,0.55495947,103060.0,103050.0,0.13839432]
[1746739202007,0.55495947,103060.0,103050.0,0.1457102]
[1746739202218,0.55495947,103060.0,103050.0,0.3137102]
[1746739202514,0.36090747,103060.0,103050.0,0.3137102]
[1746739202714,0.5548335,103070.0,103050.0,0.99262622]
[1746739202919,0.6033425,103070.0,103050.0,0.54855542]
[1746739203115,0.6518518,103070.0,103060.0,0.1759]
[1746739203310,0.6033425,103070.0,103060.0,0.18728001]
[1746739203520,0.5548335,103070.0,103060.0,0.18728001]
[1746739203722,0.5548335,103070.0,103060.0,0.99213201]
[1746739203723,9.572e-05,103070.0,103060.0,0.99213201]
[1746739203913,9.572e-05,103070.0,103060.0,1.31611683]
[1746739204121,9.572e-05,103070.0,103060.0,1.16013201]
[1746739204315,9.572e-05,103070.0,103060.0,1.48411683]
[1746739204617,0.6035762,103100.0,103070.0,0.2425345]
[1746739204818,0.3608,103090.0,103080.0,0.1783]
[1746739205017,0.6520721,103100.0,103080.0,0.46088001]
[1746739205219,0.6520721,103100.0,103080.0,0.62888001]
[1746739205417,0.5550818,103100.0,103080.0,0.62888001]
[1746739205714,0.3611,103100.0,103080.0,1.14687469]
[1746739205919,0.1939955,103090.0,103080.0,0.62887637]
[1746739206514,0.1939955,103090.0,103080.0,0.63509767]
[1746739206708,0.87878032,103090.0,103080.0,0.26807637]
[1746739206909,0.6372955,103090.0,103080.0,0.26807637]
[1746739207110,1.04778032,103090.0,103080.0,0.2567]
[1746739207417,0.1939955,103090.0,103080.0,0.10632946]
[1746739207609,0.5547955,103090.0,103080.0,0.10632946]
[1746739208020,0.1939955,103090.0,103080.0,0.10632946]
[1746739208220,0.1942825,103100.0,103080.0,0.46712946]
[1746739208425,0.1942781,103100.0,103080.0,0.46712946]
[1746739208621,0.2912692,103100.0,103080.0,0.46712946]
[1746739208815,0.1939955,103090.0,103080.0,0.5083991]
[1746739209015,0.1939955,103090.0,103080.0,0.49076964]
[1746739209211,0.1939955,103090.0,103080.0,0.63550892]
[1746739210120,0.1939955,103090.0,103080.0,0.46750892]
[1746739211218,0.1939955,103090.0,103080.0,0.63550892]
[1746739211625,0.1939955,103090.0,103080.0,0.62887586]
[1746739211929,0.2912787,103100.0,103080.0,0.62887586]
[1746739212116,0.2912787,103100.0,103090.0,0.04126964]
[1746739212423,0.001,103120.0,103100.0,0.13825404]
[1746739212626,0.001,103150.0,103140.0,0.04126964]
[1746739212825,0.001,103150.0,103140.0,1.11339815]
[1746739213028,0.1948826,103150.0,103140.0,1.11339815]
[1746739213327,0.1948826,103150.0,103140.0,1.28139815]
[1746739213625,0.1948826,103150.0,103140.0,0.59661333]
[1746739214020,0.1948826,103150.0,103140.0,0.55534369]
[1746739214422,0.1948826,103150.0,103140.0,0.55533669]
[1746739214423,0.29347326,103150.0,103140.0,0.55533669]
[1746739215821,0.65427326,103150.0,103140.0,0.28443669]
[1746739216018,0.65427326,103150.0,103140.0,0.37013669]
[1746739216414,0.29347326,103150.0,103140.0,0.37013669]
[1746739216614,0.37727326,103150.0,103140.0,0.73093669]
[1746739217119,0.37727326,103150.0,103140.0,0.56293669]
[1746739217422,0.37727326,103150.0,103140.0,0.19076783]
[1746739218030,0.37727326,103150.0,103140.0,0.20213786]
[1746739218031,0.2786826,103150.0,103140.0,0.20213786]
[1746739218219,0.001,103150.0,103140.0,0.56293734]
[1746739218623,0.001,103150.0,103140.0,0.55156783]
[1746739218820,0.001,103150.0,103140.0,0.5477685]
[1746739219216,0.3611,103170.0,103140.0,0.74566964]
[1746739219414,0.0003,103170.0,103160.0,0.40206964]
[1746739219623,0.0003,103170.0,103160.0,0.89945446]
[1746739219819,0.0003,103170.0,103160.0,0.57546964]
[1746739220017,0.12323833,103190.0,103180.0,0.04126964]
[1746739220212,0.12323833,103190.0,103180.0,1.44868076]
[1746739220420,0.12323833,103190.0,103180.0,1.21129594]
[1746739220620,0.12323833,103190.0,103180.0,1.62528076]
[1746739220925,0.3618,103210.0,103190.0,0.23506984]
[1746739221130,0.1947699,103210.0,103200.0,0.77138482]
[1746739221320,0.1947699,103210.0,103200.0,0.4474]
[1746739221921,0.53137172,103230.0,103200.0,0.81265446]
[1746739222127,0.36430412,103230.0,103220.0,0.40206964]
[1746739222728,0.17057172,103230.0,103220.0,0.48866964]
[1746739223122,0.36430412,103230.0,103220.0,0.81265446]
[1746739223430,0.36430412,103230.0,103220.0,0.48866964]
[1746739223627,0.36430412,103230.0,103220.0,0.4474]
[1746739223927,0.72510412,103230.0,103220.0,0.0866]
[1746739224123,0.92790412,103230.0,103220.0,0.0866]
[1746739224726,0.92790412,103230.0,103220.0,0.1839]
[1746739225120,0.53137172,103230.0,103220.0,0.1839]
[1746739225326,0.36430412,103230.0,103220.0,0.86868482]
[1746739225525,0.1937324,103230.0,103220.0,0.86868482]
[1746739225719,0.299766,103240.0,103220.0,0.86868482]
[1746739225924,0.5419285,103240.0,103230.0,0.0964]
[1746739226131,0.5419285,103240.0,103230.0,0.2021]
[1746739227631,0.0013,103240.0,103230.0,0.24336964]
[1746739227831,0.1950136,103240.0,103230.0,0.60416964]
[1746739228032,0.1950136,103240.0,103230.0,0.2021]
[1746739228429,0.3901136,103240.0,103230.0,0.2021]
[1746739229130,0.1937324,103230.0,103220.0,0.04126964]
[1746739229330,0.3919324,103230.0,103220.0,0.04126964]
[1746739229626,0.1937512,103220.0,103210.0,0.194]
[1746739229831,0.1937512,103220.0,103210.0,0.5548]
[1746739230033,0.8980573,103230.0,103210.0,0.5548]
[1746739230231,0.7527357,103230.0,103210.0,1.12099292]
[1746739230431,0.7527357,103230.0,103220.0,0.0921]
[1746739230630,0.1937512,103220.0,103210.0,0.1019]
[1746739230827,0.3005512,103220.0,103210.0,0.194]
[1746739231131,0.4589624,103240.0,103210.0,0.92722672]
[1746739231327,0.6571633,103240.0,103220.0,0.4529]
[1746739231524,0.5603,103240.0,103230.0,0.194]
[1746739231728,0.5558136,103240.0,103230.0,0.194]
[1746739232037,0.1950136,103240.0,103230.0,0.5548]
[1746739232229,0.1950136,103240.0,103230.0,0.59606964]
[1746739232424,0.1950136,103240.0,103230.0,0.23526964]
[1746739232625,0.2939136,103240.0,103230.0,0.23526964]
[1746739232825,0.3842136,103240.0,103230.0,0.23526964]
[1746739233536,0.1937324,103230.0,103220.0,0.24026964]
[1746739233732,0.2926324,103230.0,103220.0,0.60106964]
[1746739233939,0.3829324,103230.0,103220.0,0.24026964]
[1746739234946,0.3829324,103230.0,103220.0,0.60106964]
[1746739235149,0.3829324,103230.0,103220.0,0.24026964]
[1746739236147,0.3829324,103230.0,103220.0,0.60106964]
[1746739236450,0.1937324,103230.0,103220.0,0.24026964]
[1746739237351,0.3022324,103230.0,103220.0,0.24026964]
[1746739237549,0.3976324,103230.0,103220.0,0.60106964]
[1746739238253,0.3976324,103230.0,103220.0,0.24026964]
[1746739238547,0.3976324,103230.0,103220.0,0.199]
[1746739238748,0.7584324,103230.0,103220.0,0.24026964]
[1746739238949,0.3976324,103230.0,103220.0,0.24026964]
[1746739239441,0.3976324,103230.0,103220.0,0.13306964]
[1746739239641,0.3976324,103230.0,103220.0,0.04126964]
[1746739239848,0.7584324,103230.0,103220.0,0.04126964]
[1746739240152,0.5656324,103230.0,103220.0,0.04126964]
[1746739240349,0.1937512,103220.0,103210.0,0.1912]
[1746739240544,0.1937699,103210.0,103200.0,0.552]
[1746739242251,0.1938075,103190.0,103180.0,0.2065987]
[1746739242448,0.2907274,103190.0,103170.0,0.36467694]
[1746739242747,0.2348516,103200.0,103180.0,0.0961]
[1746739242952,0.1938075,103190.0,103180.0,0.57146421]
[1746739243152,0.3618075,103190.0,103180.0,0.21066421]
[1746739243352,0.3618075,103190.0,103180.0,0.57146406]
[1746739244549,0.3618075,103190.0,103180.0,0.57146356]
[1746739245250,0.3618075,103190.0,103180.0,0.6127332]
[1746739245755,0.3618075,103190.0,103180.0,0.62014614]
[1746739248353,0.09732159,103220.0,103210.0,0.04126964]
[1746739248557,0.09732159,103220.0,103210.0,1.21271857]
[1746739248854,0.38793759,103230.0,103210.0,1.53510968]
[1746739249056,0.38793759,103230.0,103220.0,0.72291448]
[1746739249248,0.38793759,103230.0,103220.0,0.83667903]
[1746739249444,0.38793759,103230.0,103220.0,0.84239413]
[1746739249644,0.09732159,103230.0,103220.0,0.48159413]
[1746739249850,0.09732159,103230.0,103220.0,1.11469952]
[1746739250047,0.09732159,103230.0,103220.0,1.11469462]
[1746739250452,0.09974159,103230.0,103220.0,1.11469462]
[1746739251357,0.00242,103230.0,103220.0,1.11469462]
[1746739251859,0.00242,103230.0,103220.0,1.21157061]
[1746739252061,0.09862159,103240.0,103230.0,0.23500204]
[1746739252249,0.09862159,103240.0,103230.0,1.18024546]
[1746739252450,0.09862159,103240.0,103230.0,1.27711346]
[1746739252651,0.14573213,103260.0,103250.0,0.55802199]
[1746739252852,0.14573213,103260.0,103250.0,0.97385051]
[1746739253048,0.14573213,103260.0,103250.0,1.41880796]
[1746739253247,0.14573213,103260.0,103250.0,1.63755596]
[1746739253460,0.14573213,103260.0,103250.0,1.6375511]
[1746739254567,0.14573213,103260.0,103250.0,1.5407031]
[1746739254752,0.14573213,103260.0,103250.0,1.6375511]
[1746739255356,0.14573213,103260.0,103250.0,2.3034511]
[1746739255561,0.14573213,103260.0,103250.0,2.3134511]
[1746739255861,0.31746264,103300.0,103290.0,0.23488954]
[1746739256157,0.12386014,103300.0,103290.0,0.9360281]
[1746739256362,0.12386014,103300.0,103290.0,1.27965418]
[1746739256559,0.12386014,103300.0,103290.0,1.71965418]
[1746739256860,0.0003,103310.0,103300.0,0.1936011]
[1746739257059,0.31543217,103320.0,103310.0,0.23485204]
[1746739257362,0.05608382,103330.0,103320.0,0.1935636]
[1746739257565,0.05608382,103330.0,103320.0,1.00097584]
[1746739257750,0.16570911,103350.0,103340.0,0.1935262]
[1746739257955,0.3181807,103360.0,103350.0,0.23477704]
[1746739258153,0.3181807,103360.0,103350.0,1.04963332]
[1746739258461,0.3181807,103360.0,103350.0,1.58638532]
[1746739258650,0.3181807,103360.0,103350.0,1.26332787]
[1746739258851,0.5116694,103360.0,103350.0,1.16657587]
[1746739259050,0.6796694,103360.0,103350.0,1.43700889]
[1746739259257,0.6796694,103360.0,103350.0,1.15522108]
[1746739259454,0.169,103360.0,103350.0,1.47827853]
[1746739259865,0.169,103360.0,103350.0,1.57503053]
[1746739260559,0.169,103360.0,103350.0,1.69023053]
[1746739260757,0.001,103390.0,103380.0,0.04126964]
[1746739260956,0.1138,103430.0,103420.0,0.04126964]
[1746739261156,0.168,103430.0,103420.0,1.21518539]
[1746739261463,0.168,103430.0,103420.0,1.80021699]
[1746739261663,0.168,103430.0,103420.0,1.71541699]
[1746739261960,0.41798489,103450.0,103440.0,0.23460874]
[1746739262165,0.36591548,103460.0,103450.0,0.1933204]
[1746739262368,0.36591548,103460.0,103450.0,0.99237785]
[1746739262661,0.36591548,103460.0,103450.0,1.52903785]
[1746739263165,0.36591548,103460.0,103450.0,1.28032709]
[1746739263166,0.72821718,103460.0,103450.0,1.28032709]
[1746739263363,0.84171718,103460.0,103450.0,1.28032709]
[1746739263561,0.0013,103480.0,103470.0,0.23455264]
[1746739263763,0.95561311,103500.0,103490.0,0.04126964]
[1746739263966,0.66676621,103500.0,103490.0,1.27917279]
[1746739264160,0.268,103500.0,103490.0,1.19891534]
[1746739264363,0.001,103510.0,103500.0,0.23449664]
[1746739264569,0.001,103510.0,103500.0,1.16115409]
[1746739264769,0.001,103510.0,103500.0,1.06453909]
[1746739264970,0.001,103510.0,103500.0,1.25776609]
[1746739265164,0.169,103510.0,103500.0,0.93470864]
[1746739265470,0.21890067,103550.0,103540.0,0.1931524]
[1746739265764,0.21890067,103550.0,103540.0,1.23780985]
[1746739265965,0.00035843,103590.0,103550.0,0.04126964]
[1746739266264,0.92656621,103610.0,103600.0,0.1930405]
[1746739266468,0.92656621,103610.0,103600.0,0.61261795]
[1746739266964,0.0485524,103620.0,103600.0,0.3608]
[1746739267166,0.580482,103610.0,103600.0,0.3608]
[1746739267374,0.1683,103620.0,103610.0,0.1930219]
[1746739267668,0.19543998,103650.0,103640.0,0.192966]
[1746739267669,0.00249088,103650.0,103640.0,0.192966]
[1746739267866,0.00249088,103650.0,103640.0,1.24864915]
[1746739268070,0.17049088,103650.0,103640.0,1.59513315]
[1746739268268,0.0288828,103670.0,103660.0,0.1929288]
[1746739268469,0.00135837,103690.0,103680.0,0.1928915]
[1746739268673,0.00135837,103690.0,103680.0,0.9144915]
[1746739269072,0.59068022,103700.0,103680.0,1.23754895]
[1746739269270,0.0003,103760.0,103750.0,0.1927614]
[1746739269466,0.001,103780.0,103750.0,0.72903214]
[1746739269670,0.59455826,103890.0,103790.0,0.3608]
[1746739269976,0.19295999,103890.0,103880.0,0.7216]
[1746739270272,0.1013,103900.0,103880.0,0.92491612]
[1746739270470,0.1013,103900.0,103890.0,0.3608]
[1746739270866,0.29425999,103900.0,103890.0,0.707052]
[1746739271066,0.001,103930.0,103900.0,0.3608]
[1746739271264,0.001,103930.0,103890.0,0.457052]
[1746739271265,0.001,103930.0,103920.0,0.7216]
[1746739271569,0.97180846,103930.0,103920.0,0.7216]
[1746739271772,0.001,103930.0,103920.0,0.7216]
[1746739271966,0.001,103930.0,103920.0,1.1102701]
[1746739272167,0.38060084,103970.0,103950.0,0.18668907]
[1746739272469,1.28514824,103970.0,103960.0,0.00010173]
[1746739272664,0.19295999,103950.0,103910.0,0.3608]
[1746739272861,0.59916981,103930.0,103900.0,0.36561093]
[1746739273064,7.432e-05,103960.0,103930.0,0.1924134]
[1746739273269,7.432e-05,103950.0,103940.0,0.36561093]
[1746739273472,0.19303431,103950.0,103940.0,0.36561093]
[1746739273680,7.432e-05,103950.0,103940.0,0.55801993]
[1746739273871,5.079e-05,103970.0,103960.0,0.192372]